Cogmind - Beta 15 @@@ ROGUE MODE // 2025.06.16 @ 08:44:02 Player: Scrof Result: Destroyed by CM-59E(j) with Overtuned Pulse Rifle Performance ------------- Evolutions (0) 0 Regions Visited (3) 600 Robots Destroyed (11) 55 Value Destroyed (402) 402 Prototype IDs (16) 320 Alien Tech Used (0) 0 Bonus (786) 786 TOTAL SCORE: 2163 Bonus ------- Registered with UFD 300 Met Optimus in HQ 500 Friendly Fire -14 Cogmind --------- Core Integrity 0/250 Matter 280/300 Energy 94/140 System Corruption 0% Temperature Warning (303) Movement Treading (140) Location -7/Scraptown Parts ------- > --- POWER (1) -------- Light Deuterium Engine > --- PROPULSION (2) --- Overtuned Treads Overtuned Treads > --- UTILITY (2) ------ Large Storage Unit Makeshift Light Armor Plating > --- WEAPON (2) ------- Heavy Assault Rifle Subdweller Machine Gun > --- INVENTORY (15) --- Overtuned Treads Overtuned Treads Scrap Suit Enhanced Optical Array Active Sensor Suite Improved Heavy Armor Plating Makeshift Light Armor Plating Improved Hardlight Generator DRS Beacon (Ready) Peak State ------------ > --- POWER ------------ Heavy Ion Engine > --- PROPULSION ------- Improved Aluminum Leg Improved Titanium Leg > --- UTILITY ---------- Large Storage Unit A0-MCA's Component Scanner > --- WEAPON ----------- Heavy Assault Rifle Heavy Assault Rifle > --- INVENTORY -------- Ion Engine Aluminum Leg Aluminum Leg Large Storage Unit Enhanced Optical Array Active Sensor Suite Improved Medium Armor Plating Improved Heavy Armor Plating Medium Reactive Plating Improved Hardlight Generator Subdweller Machine Gun DRS Beacon [Rating: 29] Favorites ----------- Power Heavy Ion Engine Engine Heavy Ion Engine Propulsion Improved Titanium Leg Treads Overtuned Treads Leg Improved Titanium Leg Wheel Subdweller Monowheel Utility Large Storage Unit Device Improved Sensor Array Storage Large Storage Unit Processor A0-MCA's Component Scanner Protection Improved Medium Armor Plating Weapon Heavy Assault Rifle Energy Gun Overtuned Pulse Rifle Ballistic Gun Heavy Assault Rifle Build | -11 -10 -10 -7 ------- Run | Yrd Mat Sub Scr Slots Evolved . | . . . . Power . | . . . . Propulsion . | . . . . Utility . | . . . . Weapon . | . . . . Parts Attached 31 | 5 7 2 17 Power 3 | 1 1 . 1 Engine 3 | 1 1 . 1 Core . | . . . . Reactor . | . . . . Propulsion 12 | 2 . 2 8 Treads 3 | . . . 3 Leg 8 | 2 . 1 5 Wheel 1 | . . 1 . Hover . | . . . . Flight . | . . . . Utility 10 | . 4 . 6 Device 2 | . 1 . 1 Storage 2 | . 2 . . Processor 1 | . . . 1 Hackware . | . . . . Protection 5 | . 1 . 4 Artifact . | . . . . Weapon 6 | 2 2 . 2 Energy Gun 1 | . . . 1 Energy Cannon . | . . . . Ballistic Gun 5 | 2 2 . 1 Ballistic Cannon . | . . . . Launcher . | . . . . Special Weapon . | . . . . Impact Weapon . | . . . . Slashing Weapon . | . . . . Piercing Weapon . | . . . . Special Melee Weapon . | . . . . Unidentified Prototypes . | . . . . Parts Lost 4 | . . . 4 Power 1 | . . . 1 Propulsion . | . . . . Utility 1 | . . . 1 Weapon 2 | . . . 2 Highest Loss Streak 3 | . . . 3 To Critical Strikes . | . . . . Average Backups 11 | 1 7 12 11 Power . | . . . . Propulsion 2 | 1 2 3 2 Utility 5 | . 2 4 6 Weapon 1 | . 1 2 1 Tool/Special . | . . . . Unused Backups 20 | . 3 2 15 Power 1 | . . . 1 Propulsion 5 | . 2 1 2 Utility 9 | . . . 9 Weapon 3 | . 1 1 1 Tool/Special 2 | . . . 2 Average Slot Usage (%) 99 | . 94 100 99 Engine 14 | . 14 14 14 Leg 26 | . 28 23 26 Device 7 | . 9 14 5 Storage 13 | . 9 14 14 Processor 4 | . . . 6 Protection 1 | . 3 . 2 Ballistic Gun 27 | . 28 28 27 Peak Build Rating 29 | 5 12 14 29 Average Rating 20 | 3 10 12 23 On Entrance 7 | . 5 12 13 Naked Turns . | . . . . Heaviest Build 54 | 6 36 36 54 Greatest Support 39 | 20 20 20 39 Greatest Overweight (x) 2 | . 1 1 2 Average Overweight (x) . | . . 1 1 Largest Inventory Capacity 15 | 5 15 15 15 Average Capacity 14 | 5 11 15 15 Most Carried 15 | 5 10 15 15 Average Carried 13 | 2 7 12 14 Final Capacity 15 | 5 15 15 15 Final Carried 15 | 5 10 15 13 Class Distribution -------------------- 97% | Mutant Dominant Class ---------------- Mutant | -10/Materials Mutant | -10/Subcaves Mutant | -7/Scraptown Resources | -11 -10 -10 -7 ----------- Run | Yrd Mat Sub Scr Matter Collected 727 | 251 99 35 342 Remotely . | . . . . Salvage Created 505 | 30 91 31 353 Parts 23 | 3 3 3 14 Haulers Intercepted 1 | . 1 . . Recyclers Shooed . | . . . . Parts Field Recycled . | . . . . Retrieved Matter . | . . . . Parts Self-Destructed 2 | . . 2 . Prevented . | . . . . Kills | -11 -10 -10 -7 ------- Run | Yrd Mat Sub Scr Combat Hostiles Destroyed 10 | 1 1 1 7 Guns 10 | 1 1 1 7 Classes Destroyed 7 | 1 1 1 4 Hauler 1 | . 1 . . Grunt 2 | 1 1 . . Subdweller 1 | . . 1 . Federalist 2 | . . . 2 Explorer 1 | . . . 1 Guru 1 | . . . 1 Scrapper 2 | . . . 2 Thug 1 | . . . 1 Best Kill Streak 3 | 1 1 1 3 Combat Bots Only 3 | 1 1 1 3 Max Kills in Single Turn 1 | 1 1 1 1 Gunslinging . | . . . . Exploded . | . . . . Melee . | . . . . Uniques/NPCs Destroyed . | . . . . Combat | -11 -10 -10 -7 -------- Run | Yrd Mat Sub Scr Hostile Shots Fired 89 | 2 1 2 84 Missed 17 | 1 1 1 14 Hits 72 | 1 . 1 70 Melee 2 | . . . 2 Projectile 70 | 1 . 1 68 Critical Strikes 3 | . . . 3 Damage Taken 1460 | 10 . 22 1428 Core 259 | . . . 259 Absorbed by Shields . | . . . . Core Remaining (%) 100 | 100 . . . Volleys Fired 51 | 3 4 2 42 Largest 2 | 2 2 2 2 Hottest 103 | 40 46 46 103 Shots Fired 88 | 6 8 4 70 Gun 88 | 6 8 4 70 Cannon . | . . . . Launcher . | . . . . Special . | . . . . Kinetic 82 | 6 8 4 64 Thermal 6 | . . . 6 Explosive . | . . . . Electromagnetic . | . . . . Robot Hit Streak 12 | 1 8 11 12 Robot Miss Streak 3 | 2 . . 3 Penetration Max . | . . . . Secondary Targets 1 | . . . 1 Max Gunslinging Chain 1 | . . . 1 Shots Hit Robots 59 | 2 7 3 47 Core Hits 22 | 1 3 2 16 Critical Kills . | . . . . Critical Parts Destroyed . | . . . . Critical Strikes 1 | . . . 1 Burn 1 | . . . 1 Melee Attacks . | . . . . Impact . | . . . . Slashing . | . . . . Piercing . | . . . . Sneak Attacks . | . . . . Combat Hostiles . | . . . . Follow-up Attacks . | . . . . Damage Inflicted 1015 | 24 112 39 840 Guns 1014 | 24 111 39 840 Cannons . | . . . . Explosions . | . . . . Melee . | . . . . Ramming 1 | . 1 . . Kinetic 881 | 24 111 39 707 Thermal 133 | . . . 133 Explosive . | . . . . Electromagnetic . | . . . . Impact . | . . . . Slashing . | . . . . Piercing . | . . . . Highest Corruption . | . . . . Average Corruption . | . . . . Corruption Purged . | . . . . Corruption Blocked . | . . . . Overload Shots . | . . . . Overflow Damage . | . . . . Projectiles . | . . . . Explosions . | . . . . Melee . | . . . . Knockbacks . | . . . . Impact . | . . . . Kinetic . | . . . . Secondary . | . . . . Self-Inflicted Damage . | . . . . Shots . | . . . . Rammed . | . . . . Targets Rammed 1 | . 1 . . Kicked 1 | . 1 . . Crushed . | . . . . Highest Temperature 376 | 6 . . 376 Average Temperature 120 | 6 . . 120 Received Heat Transfer 783 | 6 . . 777 Effects 3 | . . . 3 Interference 1 | . . . 1 Short Circuit 1 | . . . 1 Damage (minor) 1 | . . . 1 Siege Activations . | . . . . Martial Activations . | . . . . Shielding Activations . | . . . . Robots Disrupted . | . . . . Combat Hostiles . | . . . . Robots Corrupted . | . . . . Combat Hostiles . | . . . . Parts Fried . | . . . . Impact Corruptions . | . . . . Robots Melted . | . . . . Combat Hostiles . | . . . . Parts Melted . | . . . . Heat Transferred 348 | . . . 348 Parts Sabotaged . | . . . . Parts Stolen . | . . . . Parts Stripped . | . . . . Power Chain Reactions . | . . . . Alert | -11 -10 -10 -7 ------- Run | Yrd Mat Sub Scr Maximum Alert Level . | . . . . Low Security (%) 100 | 100 100 . . Level 1 . | . . . . Level 2 . | . . . . Level 3 . | . . . . Level 4 . | . . . . Level 5 . | . . . . High Security . | . . . . Max Security . | . . . . Peak Influence 30 | 20 30 . . Initial 6 | . 6 . . Average 3 | 2 3 . . Influence Increases 67 | 20 47 . . Destroy 0b10 Robot/C 40 | 20 20 . . Destroy 0b10 Robot/NC 5 | . 5 . . Destroy Leader 12 | . 12 . . Successful Hack 10 | . 10 . . Influence Decreases 67 | 10 47 10 . Entered New Map 10 | . 4 6 . Time Decay 57 | 10 43 4 . Squads Dispatched 1 | . 1 . . Investigation 1 | . 1 . . Extermination . | . . . . Reinforcement . | . . . . Assault . | . . . . Garrison . | . . . . Intercept . | . . . . Searches Triggered . | . . . . Construction Impeded . | . . . . Haulers Reinforced . | . . . . Active Scanning Responses . | . . . . Cargo Convoy Interrupts . | . . . . Stealth | -11 -10 -10 -7 --------- Run | Yrd Mat Sub Scr Distress Signals 1 | . 1 . . Communications Jammed . | . . . . Distress Signals . | . . . . Times Spotted 28 | 1 1 1 25 Peak Tracking Total 6 | 1 . 1 6 Tactical Retreats . | . . . . Traps | -11 -10 -10 -7 ------- Run | Yrd Mat Sub Scr Traps Triggered . | . . . . Indirectly . | . . . . Trap Hack Attempts . | . . . . Triggered . | . . . . Disarmed . | . . . . Reprogrammed . | . . . . Reused . | . . . . Traps Extracted . | . . . . Installed . | . . . . Triggered . | . . . . Machines | -11 -10 -10 -7 ---------- Run | Yrd Mat Sub Scr Machines Disabled . | . . . . Max in Single Turn . | . . . . Machines Repaired . | . . . . Machines Dismantled . | . . . . Machines Sabotaged . | . . . . Overloaded Fab Kills . | . . . . Hacking | -11 -10 -10 -7 --------- Run | Yrd Mat Sub Scr Machines Accessed 8 | . 2 . 6 Terminals 2 | . 2 . . Fabricators . | . . . . Repair Stations . | . . . . Recycling Units . | . . . . Scanalyzers . | . . . . Garrison Access . | . . . . Total Hacks 46 | . 9 . 37 Successful 41 | . 4 . 37 Failed 5 | . 5 . . Catastrophic 1 | . 1 . . Database Lockouts . | . . . . Manual 5 | . 5 . . Terminals 9 | . 9 . . Fabricators . | . . . . Repair Stations . | . . . . Recycling Units . | . . . . Scanalyzers . | . . . . Garrison Access . | . . . . Terminal Hacks 39 | . 2 . 37 Record 37 | . . . 37 Prototype ID Bank 1 | . 1 . . Alert Level 1 | . 1 . . Fabricator Hacks . | . . . . Repair Station Hacks . | . . . . Recycling Unit Hacks . | . . . . Scanalyzer . | . . . . Garrison Access Hacks . | . . . . Unauthorized Hacks 2 | . 2 . . Terminals 2 | . 2 . . Botnet 2 | . 2 . . Fabricators . | . . . . Repair Stations . | . . . . Recycling Units . | . . . . Scanalyzers . | . . . . Garrison Access . | . . . . Data Cores Recovered . | . . . . Used . | . . . . Hacking Detections 1 | . 1 . . Full Trace Events 1 | . 1 . . Feedback Events . | . . . . Feedback Blocked . | . . . . Robot Schematics Acquired . | . . . . Robots Built . | . . . . Authchips . | . . . . Time . | . . . . Total Robot Build Rating . | . . . . Part Schematics Acquired . | . . . . Parts Built . | . . . . Authchips . | . . . . Time . | . . . . Total Part Build Rating . | . . . . Parts Repaired . | . . . . Time . | . . . . Parts Recycled . | . . . . Recycled Matter . | . . . . Retrieved Matter . | . . . . Retrieved Components . | . . . . Parts Scanalyzed . | . . . . Part Schematics Acquired . | . . . . Parts Damaged . | . . . . Bothacking | -11 -10 -10 -7 ------------ Run | Yrd Mat Sub Scr Used RIF Installer . | . . . . Robots Hacked . | . . . . Non-combat . | . . . . Combat . | . . . . Robot Hacks Applied . | . . . . Relay Couplers Released . | . . . . Fabnet Peak Effective % . | . . . . Robots Rewired . | . . . . Allies Hacked . | . . . . Hacks Repelled . | . . . . Allies | -11 -10 -10 -7 -------- Run | Yrd Mat Sub Scr Total Allies . | . . . . Largest Group . | . . . . Highest-Rated Group . | . . . . Highest-Rated Ally . | . . . . Total Orders . | . . . . Ally Attacks . | . . . . Total Damage . | . . . . Kills . | . . . . Allies Corrupted . | . . . . Allies Melted 6 | . . . 6 Intel | -11 -10 -10 -7 ------- Run | Yrd Mat Sub Scr Active Infowar (turns) 2413 | . 223 708 1482 Sensors 1286 | . . . 1286 ECM 1127 | . 223 708 196 Robot Analysis Total . | . . . . Derelict Logs Recovered 2 | . . 2 . Drone Launches . | . . . . Drone Recoveries . | . . . . Exploration | -11 -10 -10 -7 ------------- Run | Yrd Mat Sub Scr Turns Passed 4664 | 103 300 708 3553 Spaces Moved 2410 | 80 163 425 1742 Core 19 | 19 . . . Treads 49 | . . . 49 Legs 2161 | 61 163 244 1693 Wheels 181 | . . 181 . Hover . | . . . . Flight . | . . . . Fastest Speed 50 | 50 120 120 140 Average Speed 182 | 103 162 160 193 Slowest Speed 240 | 120 190 190 240 Overloaded Moves . | . . . . Propulsion Burnouts . | . . . . Robots Hopped . | . . . . Potential Cave-ins . | . . . . Cave-ins Triggered . | . . . . Exploration Rate (%) 42 | 6 43 32 88 Regions Visited 3 Branch Regions 2 Pre-discovered Areas 1 | . . 1 . Known Exits Taken . | . . . . Unknown Exits Taken 3 | 1 1 1 . Scrap Searched 6 | . . 2 4 Spaces Dug . | . . . . Terrain Destroyed 1 | . . . 1 Melee . | . . . . Projectile 1 | . . . 1 AOE . | . . . . Terrain Rammed . | . . . . Walls Destroyed . | . . . . Machines Disabled . | . . . . Actions | -11 -10 -10 -7 --------- Run | Yrd Mat Sub Scr Total 2593 | 92 191 453 1857 Wait 10 | . 4 3 3 Move 2407 | 79 162 424 1742 Hop . | . . . . Pick Up 43 | 5 6 12 20 Fast Attach 13 | 5 3 1 4 Attach 4 | . . . 4 Detach 4 | . 1 1 2 Swap 16 | . 4 1 11 Drop 43 | . 6 9 28 Fire 51 | 3 4 2 42 Melee . | . . . . Ram . | . . . . Kick 1 | . 1 . . Crush . | . . . . Escape Stasis . | . . . . Rewire 1 | . . . 1 Trap . | . . . . Miscellaneous . | . . . . Route ------- -11/Scrapyard -10/Materials (discovered 3 exits: [*Mat] / [*Min] / [*Sub]) -10/Subcaves (discovered 2 exits: [*Mat] / *Scr) -7/Scraptown (discovered 1 exit: [*Fac]) History --------- Turn | Location | Event 2 | -11/Scrapyard | Met Revision 17 81 | -11/Scrapyard | Discovered new exit (range 8) 104 | -11/Scrapyard | Entered Materials 105 | -10/Materials | Met a group of wandering Federalists 184 | -10/Materials | Discovered new exit (range 13) 312 | -10/Materials | Build established: Mutant 363 | -10/Materials | Discovered new exit (range 12) 370 | -10/Materials | Discovered new exit (range 7) 404 | -10/Materials | Entered Subcaves 405 | -10/Subcaves | Continued accompanying wandering Federalists (6) 427 | -10/Subcaves | Learned location of Zion (-6) 608 | -10/Subcaves | Wandering Federalist uncovered a shortcut to Scraptown 860 | -10/Subcaves | Discovered new exit (range 11) 878 | -10/Subcaves | Disturbed a concealed Subdweller 1112 | -10/Subcaves | Entered Scraptown 1618 | -7/Scraptown | Visited IN-MT5's Study 1671 | -7/Scraptown | Visited TADAMA 1708 | -7/Scraptown | Visited CPS Storage 1735 | -7/Scraptown | Visited Spacefarers 1909 | -7/Scraptown | Visited SPCMW 1992 | -7/Scraptown | Visited Fellowship of the Rings 2341 | -7/Scraptown | Visited UFD Registry 2368 | -7/Scraptown | Visited Cyclists 2439 | -7/Scraptown | Registered with UFD as "Datastep" 2517 | -7/Scraptown | Visited Derelict Rescue Squad 2533 | -7/Scraptown | Found DRS Beacon 2577 | -7/Scraptown | Visited A0-MCA Data Center 2588 | -7/Scraptown | Given a B rating by A0-MCA 2593 | -7/Scraptown | Found A0-MCA's Component Scanner 2634 | -7/Scraptown | Visited Observation Area 2872 | -7/Scraptown | Visited Research Penetration Think Tank 2913 | -7/Scraptown | Visited Scrap Suit Storage 3026 | -7/Scraptown | Visited Infowarlord's Domain 3042 | -7/Scraptown | Found Active Sensor Suite 3091 | -7/Scraptown | Visited Chapter 10 3155 | -7/Scraptown | Visited Curators Association 3845 | -7/Scraptown | Delivered Scrap Shield to a Scientist 4203 | -7/Scraptown | Met Optimus 4203 | -7/Scraptown | Accepted into 0bPrime 4318 | -7/Scraptown | Visited Cartography Club 4383 | -7/Scraptown | Civil war broke out across Scraptown 4407 | -7/Scraptown | Found Scrap Suit 4456 | -7/Scraptown | Lost 5 allies 4490 | -7/Scraptown | Core integrity fell below 50% 4506 | -7/Scraptown | Lost 3 allies 4515 | -7/Scraptown | Discovered new exit (range 10) 4644 | -7/Scraptown | Core integrity fell below 20% 4665 | -7/Scraptown | Destroyed by CM-59E(j) with Overtuned Pulse Rifle Last Messages --------------- to repair Ovr. Titanium Leg. 04636_ Hvy. Assault Rifle destroyed. 04638_ CM-59E(j) cannibalizes Ovr. Titanium Leg to repair Ovr. Titanium Leg. 04640_ 0X-KC5(j) suffers critical hit (Burn). 04640_ 0X-KC5(j) destroyed. 04641_ MX-V5U(j) suffers critical hit (Destroy). 04643_ Overheating: Hvy. Ion Engine damaged (-1). 04644_ Ovr. Treads broken. 04644_ Overheating: Short circuit. 04644_ 69-FET(j) destroyed. 04651_ CM-59E(j) cannibalizes VSS Leg to repair Ovr. Titanium Leg. 04653_ BE-SRK(g) destroyed. 04653_ Acquired 65 matter. 04657_ IZ-V5B(E): "We are one!" 04661_ Hvy. Ion Engine destroyed. 04661_ Critical hit (Burn: +50). 04663_ MX-V5U(j) destroyed. Map ----- +----------------------------------------------------+ | | | | | | | | | | | | | | | | | | | ?????????????????????????????????????????????????? | | ?????????????????????????????????????????????????? | | ?????????????????????????????????????????????????? | | ?????????????????????????????????????????????????? | | ?????????????????????????????????????????????????? | | ?????????????????????????????????????????????????? | | ?????????????????????????????????????????????????? | | ?????????????????????????????????????????????????? | | ?????????????????????????????????????????????????? | | ?????????????????????????????????????????????????? | | ?????????????????????????????????????????????????? | | ???????????????????????????????#?????????????????? | | ???????????????????###????????"#?????????????????? | | ###############???##=#???????!"#?????????????????? | | #"""##""|##"""#??##!=####?##%<=#?????????????????? | | #""!##"" ##! "####!![=#%##=%&!!##????????????????? | | *%![%[%[[%@!!%==!#????????????????? | | /%==%[=j!E!%%[!=*#????????????????? | | ##################!!!!##[########????????????????? | | ?????????????????##%=#####???????????????????????? | | ???????############[*#???????????????????????????? | | #####??#"""""""""## !#???????????????????????????? | | """"""##" "##[!#?##????????????????????????? | | """"""##" """"" "##%*#?# ????????????????????????? | | """"""##" "???" "## !#?# ##??????????????????????? | | """"""##" "???" "#"[=#?? ###????????????????????? | | | """##" "???" "#" #??###X#????????????????????? | | """##" "???" "#" #### ###????????????????????? | | """##" """"" "#!!!# #????????????????????? | | """"##" "#=%=###### #######??????????????? | | """##"" #!!*# #??????????????? | | "## #!%=# #??????????????? | | # ########### #####=%## ###########??????????????? | | # ########### #####[!=# ###########??????????????? | | " """"""""""" """"%[!=[ "## " """"#??????????????? | | [!%!=%"## ""#??????????????? | | !!=%!"## "#??????????????? | | %[!! ## ""#??????????????? | | ! [ ## ""#??????????????? | | %*! !%= ""#??????????????? | | """""""""""""""""" % !"## """"""#??????????????? | +----------------------------------------------------+ Best States ------------- Heat Dissipation 25 Energy Generation 14 Energy Capacity 280 Matter Stores 300 Matter Capacity 300 Sight Range 16 Robot Scan Range 15 Terrain Scan Density 10 ECM Strength 1 Armor Coverage 225 Resistance: KI 30 Evasion (%) 55 Recoil Reduction 2 Item Schematics ----------------- None Robot Schematics ------------------ None Fabricated ------------ Nothing Repaired ---------- Nothing Alien Tech Used ----------------- None Achievements -------------- None Challenges ------------ None Game ------ Seed ThermoelectricAntigravBeacon Manual? 0 Play Time 01:05:48 Cumulative 20.6 hours Start 2025.06.16 @ 02:50:37 End 2025.06.16 @ 08:44:02 Sessions 5 Manual Loads 0 Difficulty Rogue Special Mode None Game No. 14 Rogue 14 Adventurer 0 Explorer 0 Win Type - Total 0 Types 0/0/0/0/0/0/0/0/0/0 Lore% 19 Gallery% 26 Achievement% 27 Wizard Run 0 Options --------- Layout 2 ASCII 0 Keyboard 1 Movement Numpad Keybinds 0 Fullscreen 2 Font 32/Terminus Map View 50x49 Zoom Use 0% Tactical HUD 1 Map Filters NONE Filters NONE Steam 1 RUN: f4cd8c56-72cb-4ee4-ae74-f9419e709ce7